bitfinex/quotes_ETHUSD_20240710
["timestamp","ask_amount","ask_price","bid_price","bid_amount"]
[1720584857944,5.6884,3110.9,3108.9,0.43198003]
[1720584858146,2.2954,3110.3,3108.0,2.4218]
[1720584858497,0.55,3110.2,3108.0,2.4218]
[1720584858825,3.55,3110.2,3108.0,2.4218]
[1720584859353,0.30998181,3109.8,3108.0,2.4218]
[1720584859510,3.266,3108.7,3106.6,2.36]
[1720584859698,7.1449,3109.2,3106.6,2.42437336]
[1720584859699,6.266,3108.6,3106.6,2.42437336]
[1720584859897,6.266,3108.6,3106.6,2.36]
[1720584860097,6.266,3108.6,3106.7,0.06436883]
[1720584860098,3.0,3108.6,3106.7,0.06436883]
[1720584860343,0.55,3108.5,3106.7,0.06436883]
[1720584860895,0.55,3108.5,3106.7,2.63943883]
[1720584861098,3.0,3109.0,3106.7,2.63943883]
[1720584861099,3.0,3109.0,3106.8,3.0]
[1720584861412,0.55,3108.9,3106.8,5.57499]
[1720584861606,0.55,3108.9,3106.9,2.5749]
[1720584861808,0.55,3109.0,3107.0,5.57482]
[1720584862027,1.13019,3109.0,3107.0,2.57482]
[1720584862201,1.13019,3109.0,3107.1,3.0]
[1720584862599,1.13019,3109.0,3106.9,3.06434994]
[1720584862798,1.13019,3109.0,3107.0,1.12042583]
[1720584863020,1.13019,3109.0,3107.0,6.69522583]
[1720584863229,0.30998181,3109.6,3107.4,2.57446]
[1720584863433,0.30998181,3109.6,3107.6,2.57431]
[1720584863617,0.30998181,3109.6,3107.5,6.3303407]
[1720584863618,0.35759818,3109.7,3107.7,3.0]
[1720584863802,0.28249982,3109.6,3107.5,8.84039]
[1720584863999,0.28249982,3109.6,3107.6,1.12024253]
[1720584864250,0.28249982,3109.6,3107.7,2.80060172]
[1720584864553,2.4674,3109.8,3107.8,6.45532591]
[1720584864716,2.4674,3109.8,3107.9,2.80052664]
[1720584865039,3.04074,3109.8,3108.0,0.06433439]
[1720584865237,3.04074,3109.8,3108.1,1.12010857]
[1720584865406,3.04074,3109.8,3108.2,1.12009782]
[1720584865623,3.04074,3109.8,3107.9,0.66013246]
[1720584865961,2.4674,3109.8,3108.0,2.80028127]
[1720584866122,0.55,3109.7,3108.1,1.12012837]
[1720584866322,0.79674,3109.7,3107.8,3.66013246]
[1720584866553,3.0,3110.1,3108.1,0.66013246]
[1720584866802,0.6266,3110.0,3108.2,2.80046692]
[1720584866936,0.6266,3110.0,3108.3,2.80046692]
[1720584867149,0.6266,3110.0,3108.1,0.66113825]
[1720584867350,0.6266,3110.0,3108.2,2.80016805]
[1720584867659,0.36266,3109.9,3108.3,2.80016023]
[1720584867862,3.0,3110.2,3108.4,2.80008811]
[1720584868066,3.0,3110.2,3108.5,2.8644108]
[1720584868365,2.4561,3110.4,3108.5,2.8644108]
[1720584868366,3.0,3110.3,3108.6,2.79976303]
[1720584868568,0.54561,3110.2,3108.7,1.11990521]
[1720584868865,3.0,3110.3,3108.5,0.66113825]
[1720584869072,2.4561,3110.4,3108.7,0.06432381]
[1720584869243,3.03270818,3110.4,3108.7,0.06432381]
[1720584869447,3.0,3110.3,3108.5,0.66113825]
[1720584869674,3.03270818,3110.4,3108.6,2.79969102]
[1720584869877,2.4561,3110.4,3108.7,5.24642231]
[1720584870084,0.55,3110.3,3108.8,4.11987641]
[1720584870371,3.5889,3111.2,3108.8,4.11987641]
[1720584870372,0.30998181,3110.9,3108.9,0.06432063]
[1720584870773,10.18588181,3111.0,3108.7,8.94724825]
[1720584870937,0.98759,3110.9,3108.8,3.52493498]
[1720584871271,2.72588181,3111.0,3108.9,2.79948256]
[1720584871461,2.4159,3111.0,3109.0,1.1197929]
[1720584871777,2.4159,3111.0,3108.8,3.23446825]
[1720584871778,0.30998181,3110.8,3108.9,1.67957772]
[1720584871970,0.24159,3110.9,3108.7,8.94722825]
[1720584872150,1.15802081,3110.8,3108.8,6.03390375]
[1720584872352,0.848039,3110.8,3108.8,4.2529873]
[1720584872641,0.848039,3110.8,3108.9,1.11977179]
[1720584872854,0.848039,3110.8,3109.0,1.11973397]
[1720584873060,0.4089629,3110.7,3108.8,2.57333]
[1720584873269,0.55,3110.6,3108.8,2.57333]
[1720584873857,0.55,3110.6,3108.9,1.11972997]
[1720584874317,0.55,3110.6,3108.7,5.7127]
[1720584874741,0.55,3110.6,3108.8,3.0]
[1720584876816,0.55,3110.6,3108.9,0.06431689]
[1720584876988,0.4089629,3110.7,3108.9,0.06431689]
[1720584877145,0.4089629,3110.7,3108.8,5.57333]
[1720584877552,0.4089629,3110.7,3108.8,5.63764292]
[1720584877758,0.298039,3110.8,3108.8,5.63764292]
[1720584877982,0.55,3110.7,3108.8,5.63764292]
[1720584878584,0.55,3110.8,3108.8,5.63764292]
[1720584878885,0.85998181,3110.8,3108.8,5.57333]
[1720584879184,0.85998181,3110.8,3108.8,3.0]
[1720584879185,0.30998181,3110.6,3108.8,3.0]
[1720584879396,0.55,3110.5,3108.8,3.0]
[1720584880459,0.85998181,3110.6,3108.8,3.0]
[1720584882584,0.30998181,3110.4,3108.8,3.0]
[1720584883982,0.30998181,3110.2,3108.7,5.7127]
[1720584884187,0.30998181,3110.2,3108.7,2.4467]
[1720584885233,0.30998181,3110.0,3108.3,3.266]
[1720584885441,3.30998181,3110.0,3108.3,3.266]
[1720584886226,0.30998181,3109.6,3107.9,3.266]
[1720584886523,0.55,3109.5,3107.7,2.4447]
[1720584886705,2.4705,3109.4,3107.7,2.4447]
[1720584886888,0.55,3109.3,3107.3,3.266]
[1720584887090,3.79705,3109.3,3107.3,3.266]
[1720584887281,1.6818642,3109.2,3107.2,2.4447]
[1720584887483,0.30998181,3108.8,3107.2,2.4447]
[1720584888534,0.30998181,3108.6,3106.8,3.266]
[1720584888829,2.78048181,3108.4,3106.8,3.266]
[1720584889034,0.33304818,3108.3,3106.8,3.266]
[1720584889396,0.33304818,3108.3,3106.7,2.4447]
[1720584889397,0.30998181,3108.2,3106.7,2.4447]
[1720584890007,0.33304818,3108.3,3106.7,2.4447]
[1720584890451,2.4705,3108.4,3106.8,3.266]
[1720584890600,2.4705,3108.4,3106.9,3.0]
[1720584891212,2.4817,3108.9,3107.0,0.06435521]
[1720584891421,3.39592363,3108.9,3107.2,3.266]
[1720584891606,3.39592363,3108.9,3107.3,3.0]
[1720584891942,3.37059054,3108.8,3107.3,3.0]
[1720584892597,3.68057235,3108.8,3107.3,3.0]
[1720584893028,3.68057235,3108.8,3106.8,3.266]
[1720584893029,0.55,3108.7,3106.9,3.0]
[1720584893245,0.30998181,3108.6,3106.9,3.0]
[1720584893632,0.55,3108.5,3106.9,3.0]
[1720584895742,0.30998181,3108.4,3106.8,3.266]
[1720584896042,0.30998181,3108.2,3106.4,3.266]
[1720584896551,2.2547,3108.0,3106.4,3.266]
[1720584897040,2.2547,3108.0,3106.3,0.06436579]
[1720584897041,2.2547,3108.0,3106.9,3.266]
[1720584897243,2.2547,3108.0,3106.5,6.266]
[1720584898322,2.53517,3108.0,3106.5,6.266]
[1720584898517,0.55,3107.9,3106.5,6.266]
[1720584899214,0.55,3107.9,3106.2,2.3798]
[1720584899413,3.85998181,3107.9,3106.2,2.3798]
[1720584900239,3.85998181,3107.9,3105.8,3.266]
[1720584900443,0.63951518,3107.8,3105.8,3.266]
[1720584900646,0.55,3107.7,3105.9,3.0]
[1720584901077,0.55,3107.7,3106.0,0.06437436]
[1720584901207,2.2547,3108.0,3107.1,3.266]
[1720584901557,2.2547,3108.0,3107.2,3.0]
[1720584901756,9.7575,3108.6,3106.8,3.06435474]
[1720584901907,10.81773542,3108.6,3106.8,3.0]
[1720584902353,10.81773542,3108.6,3106.4,3.0]
[1720584902526,2.2975,3108.4,3106.4,3.0]
[1720584902855,2.2975,3108.2,3106.0,5.4588]
[1720584903039,0.55,3108.1,3106.0,2.4588]
[1720584903266,0.75288278,3108.0,3106.0,2.4588]
[1720584903451,0.55,3107.9,3106.0,2.4588]
[1720584904128,2.62478181,3107.8,3105.2,5.39168334]
[1720584904328,1.68196517,3107.3,3105.0,2.4105]
[1720584904524,4.31966517,3107.1,3104.6,3.266]
[1720584904775,1.68196517,3107.0,3105.1,3.266]
[1720584904937,1.02149617,3107.0,3105.5,3.266]
[1720584905139,4.02149617,3107.0,3105.5,3.266]
[1720584905577,4.02149617,3107.0,3105.1,3.266]
[1720584905787,0.63362962,3106.9,3105.2,3.0]
[1720584905932,0.55,3106.8,3105.2,3.0]
[1720584906268,0.55,3106.8,3105.3,0.06438823]
[1720584906470,0.55,3106.8,3104.9,3.266]
[1720584906627,0.55,3106.8,3104.9,3.33039279]
[1720584906829,0.45209076,3106.7,3104.9,3.33039279]
[1720584907078,0.55,3106.6,3104.9,3.33039279]
[1720584907228,0.55,3106.6,3104.9,3.266]
[1720584907430,0.55,3106.6,3105.0,3.0]
[1720584907628,0.55,3106.6,3104.7,3.0]
[1720584907629,2.4492,3106.5,3104.7,3.0]
[1720584907875,0.84992,3106.4,3104.7,3.0]
[1720584908366,3.55,3106.4,3104.7,3.06439836]
[1720584908776,3.55,3106.4,3104.7,3.0]
[1720584908934,3.55,3106.4,3104.6,5.90721836]
[1720584909130,3.55,3106.4,3104.7,3.0]
[1720584909330,3.0,3106.4,3104.8,0.06439599]
[1720584909556,0.59992,3106.4,3104.8,0.06439599]
[1720584909759,0.55,3106.3,3104.7,3.0]
[1720584910579,2.23801253,3106.3,3104.5,2.4105]
[1720584910757,0.5835847,3106.2,3104.5,2.4105]
[1720584910952,0.55,3106.1,3104.5,2.4105]
[1720584911274,0.55,3106.1,3104.3,3.0]
[1720584911275,1.68801253,3105.9,3104.3,3.0]
[1720584911428,0.39876125,3105.8,3104.0,5.64172052]
[1720584911632,0.55,3105.8,3104.0,5.64172052]
[1720584911922,0.55,3105.8,3104.2,3.266]
[1720584912055,0.55,3105.8,3104.3,3.0]
[1720584912664,2.23801253,3105.8,3104.3,3.0]
[1720584912970,0.55,3105.8,3104.3,3.0]
[1720584913278,3.0,3105.9,3104.4,1.12142532]
[1720584913580,3.98761253,3106.0,3104.5,3.46862936]
[1720584913749,0.39876125,3105.9,3104.6,5.80354135]
[1720584913948,2.09071253,3105.9,3104.4,0.66686647]
[1720584914257,2.09071253,3105.9,3104.5,2.80348003]
[1720584914469,1.69195128,3105.9,3104.6,5.80348003]
[1720584914635,1.69195128,3105.8,3104.7,1.12139201]
[1720584914960,1.69195128,3105.8,3104.5,0.66686647]
[1720584915157,2.09110641,3105.8,3104.6,2.80347261]
[1720584915397,2.24195128,3105.7,3104.7,2.80354911]
[1720584915592,2.24195128,3105.7,3104.5,0.66686647]
[1720584915593,2.80606192,3105.7,3104.5,0.66686647]
[1720584915735,2.80606192,3105.7,3104.6,1.12143723]
[1720584915736,1.69195128,3105.6,3104.6,1.12143723]
[1720584915936,1.69195128,3105.2,3104.1,0.66686647]
[1720584916175,1.69195128,3105.3,3104.2,2.80391397]
[1720584916338,1.69195128,3105.1,3104.0,0.66686647]
[1720584916541,1.69195128,3105.0,3104.1,1.12164191]
[1720584916764,1.69195128,3105.0,3103.9,0.66686647]
[1720584917080,1.69195128,3105.0,3104.0,2.8041142]
[1720584917277,1.69442892,3105.0,3104.1,1.1216571]
[1720584917441,1.69442892,3105.0,3103.9,0.66804526]
[1720584917639,1.69422857,3105.1,3104.0,2.8041028]
[1720584917974,1.69422857,3105.2,3104.1,5.80405855]
[1720584918194,1.69422857,3105.3,3104.2,2.8684729]
[1720584918492,1.69422857,3105.4,3104.3,2.80405855]
[1720584918713,1.69422857,3105.4,3104.4,1.12162342]
[1720584918893,1.69422857,3105.2,3104.1,0.66804526]
[1720584919196,1.69422857,3105.2,3104.2,2.80390357]
[1720584919408,1.69422857,3105.2,3104.0,0.66804526]
[1720584919558,1.69422857,3105.0,3103.8,0.66804526]
[1720584919761,2.2571,3105.1,3103.4,0.66804526]
[1720584919762,1.69422857,3104.6,3103.4,0.66804526]
[1720584919961,1.69422857,3104.2,3103.1,0.66804526]
[1720584920175,1.69422857,3104.2,3103.2,2.80494016]
[1720584920397,1.69422857,3104.1,3103.0,0.66804526]
[1720584920700,1.69480818,3104.1,3103.1,1.12202485]
[1720584920899,1.69480818,3104.2,3103.2,2.80503087]
[1720584921070,1.69480818,3104.2,3103.3,1.18645942]
[1720584921270,6.72708136,3104.8,3103.3,0.06443457]
[1720584921271,2.03234652,3104.3,3103.3,0.06443457]
[1720584921494,2.03234652,3104.3,3103.4,1.12188709]
[1720584921682,2.03234652,3104.3,3103.5,1.1218697]
[1720584921683,0.33753834,3104.3,3103.5,1.1218697]
[1720584921929,1.69480818,3104.6,3103.6,6.13498547]
[1720584922199,2.2571,3105.1,3103.7,2.80455607]
[1720584922200,2.03232705,3104.7,3103.7,2.80455607]
[1720584922400,2.03232705,3104.7,3103.4,0.66804526]
[1720584922401,1.69480818,3104.6,3103.4,0.66804526]
[1720584922587,1.69480818,3104.5,3103.5,2.80453143]
[1720584922893,1.69480818,3104.5,3103.6,4.12181257]
[1720584923103,0.33751887,3104.7,3103.4,3.66804526]
[1720584923302,1.69450066,3104.5,3103.5,2.80455313]
[1720584923464,1.69450066,3104.5,3103.6,3.0]
[1720584923663,1.69450066,3104.5,3103.4,3.0]
[1720584923664,0.20320195,3104.5,3103.4,3.0]
[1720584923967,0.55,3104.4,3102.8,5.6037]
[1720584924188,0.55,3104.6,3102.9,3.0]
[1720584925307,0.55,3104.6,3102.9,5.57823]
[1720584925898,0.55,3104.6,3103.0,2.57814]
[1720584926097,0.33751887,3104.7,3103.3,3.266]
[1720584926810,0.33751887,3104.7,3103.4,3.0]
[1720584927405,0.33751887,3104.7,3104.6,0.64984183]
[1720584927715,0.33751887,3104.7,3104.6,3.45430891]
[1720584927877,0.33751887,3104.7,3104.6,3.47236934]
[1720584928380,0.33751887,3104.7,3104.6,2.80446708]
[1720584929072,0.33751887,3104.7,3104.6,3.4724194]
[1720584929275,0.33751887,3104.7,3104.6,2.80446708]
[1720584929715,0.33751887,3104.7,3104.6,3.47237406]
[1720584929888,0.88751887,3104.7,3104.5,0.66790698]
[1720584930082,0.88751887,3104.7,3104.6,1.12180243]
[1720584930311,0.88751887,3104.7,3104.6,2.80457474]
[1720584930512,0.88751887,3104.7,3104.6,1.12180243]
[1720584930716,0.88751887,3104.7,3104.6,2.8045582]
[1720584930919,0.88751887,3104.7,3104.6,1.12180243]
[1720584931222,0.88751887,3104.7,3104.3,0.66790698]
[1720584931427,0.55,3104.6,3104.4,2.80471905]
[1720584931596,0.55,3104.6,3104.3,0.66790698]
[1720584931597,0.55,3104.6,3104.5,1.12188762]
[1720584931925,0.55,3104.6,3104.2,0.66790698]
[1720584932215,0.55,3104.6,3104.1,0.66790698]
[1720584932216,2.3487,3104.5,3104.1,0.66790698]
[1720584932399,2.3487,3104.5,3103.8,1.29968367]
[1720584932400,0.30998181,3104.3,3104.0,0.66790698]
[1720584932588,0.83987,3104.4,3103.9,0.66790698]
[1720584932793,0.263857,3104.3,3104.0,1.12211311]
[1720584932983,0.55,3104.2,3103.8,0.66790698]
[1720584933385,0.55,3104.2,3103.7,0.97476275]
[1720584933386,0.55,3104.2,3103.9,3.47305136]
[1720584933687,0.55,3104.2,3103.7,0.97476275]
[1720584933688,0.55,3104.2,3104.0,3.47305136]
[1720584933887,0.55,3104.4,3104.1,3.47305136]
[1720584934127,0.55,3104.4,3104.2,2.80514438]
[1720584934327,0.55,3104.4,3104.3,2.80514438]
[1720584934512,0.86673219,3104.4,3104.0,0.66790698]
[1720584934710,0.86673219,3104.4,3104.1,2.8050255]
[1720584934917,0.86673219,3104.4,3104.2,2.8050255]
[1720584935117,0.86673219,3104.4,3104.3,1.1220102]
[1720584935290,2.3487,3104.5,3104.3,2.80491268]
[1720584935626,0.33751887,3104.7,3104.4,3.47281966]
[1720584935814,0.67127076,3104.7,3104.5,2.80491268]
[1720584936001,0.33751887,3104.7,3104.6,1.1220102]
[1720584936208,0.33751887,3104.7,3104.6,2.80474981]
[1720584936415,0.33751887,3104.7,3104.6,2.80458945]
[1720584936727,0.33751887,3104.7,3104.6,2.80460274]
[1720584936893,0.33751887,3104.7,3104.6,2.80457695]
[1720584937094,0.33751887,3104.7,3104.6,1.12183078]
[1720584937095,0.64750068,3104.7,3104.6,1.12183078]
[1720584937294,0.64750068,3104.7,3104.0,1.66935994]
[1720584937295,3.0,3104.2,3103.8,1.00161596]
[1720584937525,0.9616,3103.9,3103.3,0.33152643]
[1720584937697,0.9616,3103.4,3102.6,1.00161596]
[1720584938030,0.9616,3103.4,3102.7,1.12262567]
[1720584938031,0.55,3103.3,3102.7,1.12262567]
[1720584938240,0.55,3103.3,3102.8,1.12251888]
[1720584938421,0.55,3103.3,3102.5,1.00161596]
[1720584938422,1.00116,3103.3,3102.5,1.00161596]
[1720584938596,1.00116,3103.3,3102.6,6.05279623]
[1720584938795,0.55,3103.3,3102.7,2.80623888]
[1720584939112,0.55,3103.3,3102.8,2.80623888]
[1720584939420,0.55,3103.3,3102.9,1.12250139]
[1720584939627,0.55,3103.3,3102.5,1.00161596]
[1720584939825,0.55,3103.3,3102.6,2.80623688]
[1720584939992,0.55,3103.3,3102.5,1.00161596]
[1720584939993,0.55,3103.3,3102.7,2.80623688]
[1720584940192,0.55,3103.3,3102.5,1.00161596]
[1720584940193,0.55,3103.3,3102.8,2.80623688]
[1720584940429,3.0,3103.7,3103.0,1.00161596]
[1720584940647,0.33769075,3103.8,3103.3,1.00161596]
[1720584940805,0.33769075,3103.8,3103.4,6.05240456]
[1720584941007,0.33769075,3103.8,3103.5,2.80623688]
[1720584941340,0.33769075,3103.8,3102.3,3.0]
[1720584941341,0.26622908,3103.7,3102.3,3.0]
[1720584941635,0.26622908,3103.7,3101.6,2.3176]
[1720584941636,1.69554745,3103.0,3102.1,3.0]
[1720584941838,1.69554745,3102.9,3101.9,3.0]
[1720584942013,1.69554745,3102.8,3101.7,3.0]
[1720584942214,2.24554745,3102.7,3101.8,1.12246325]
[1720584942525,1.69554745,3102.4,3101.2,3.24659229]
[1720584942724,1.69554745,3102.4,3101.1,2.3966]
[1720584942725,1.69554745,3101.7,3100.6,2.3966]
[1720584942912,1.69554745,3101.5,3100.6,2.7364216]
[1720584943116,1.69641155,3101.5,3100.6,2.7364216]
[1720584943495,1.69641155,3101.5,3100.6,0.3398216]
[1720584943799,1.69641155,3101.5,3100.2,1.00161596]
[1720584944134,1.69641155,3101.5,3100.3,9.38516169]
[1720584944454,1.69641155,3101.7,3100.4,6.11915501]
[1720584944631,1.69641155,3101.8,3100.6,2.4027]
[1720584944839,1.69641155,3101.8,3100.7,2.80725725]
[1720584945004,1.69641155,3101.8,3100.8,5.80725725]
[1720584945198,1.69641155,3101.8,3100.9,2.80725725]
[1720584945403,1.69641155,3101.8,3100.8,3.0]
[1720584945636,1.69641155,3101.8,3100.9,1.12277875]
[1720584945938,1.69641155,3101.4,3100.2,1.00161596]
[1720584946232,1.69641155,3101.4,3100.3,2.80732418]
[1720584946436,1.69652405,3101.5,3100.4,2.87188441]
[1720584946734,3.0,3101.9,3100.5,0.28718844]
[1720584946946,3.0,3101.9,3100.3,3.45351596]
[1720584946947,1.6965198,3101.4,3100.4,3.0]
[1720584947240,1.6965198,3101.4,3100.5,1.12292676]
[1720584947440,1.6965198,3101.3,3100.4,3.0]
[1720584947601,1.69654473,3101.2,3100.3,5.4519]
[1720584947802,1.69654473,3101.1,3100.0,0.669766]
[1720584948003,1.69654473,3101.1,3100.1,2.80767439]
[1720584948257,1.69654473,3100.8,3099.8,2.4519]
[1720584948419,1.69654473,3100.9,3099.9,2.80780442]
[1720584948737,1.69654473,3100.8,3100.0,1.12312177]
[1720584948936,1.69654473,3100.8,3099.8,3.18617108]
[1720584949149,1.69654473,3100.9,3099.9,2.80784048]
[1720584949350,1.69654473,3100.9,3100.0,1.12313619]
[1720584949552,1.69654473,3100.8,3099.9,3.0]
[1720584949765,2.419,3100.8,3100.0,2.80773175]
[1720584950058,1.69670985,3100.3,3099.2,0.78336414]
[1720584950351,0.71965447,3100.7,3099.3,3.65732847]
[1720584950352,1.11785298,3100.2,3099.3,3.65732847]
[1720584950551,1.11785298,3100.3,3099.4,5.7570634]
[1720584950718,1.69670985,3100.6,3099.6,0.67019104]
[1720584950923,1.11773922,3100.5,3099.7,2.87278198]
[1720584951123,1.69670985,3100.6,3099.8,0.06450966]
[1720584951124,1.11773922,3100.4,3099.8,0.06450966]
[1720584951315,1.11773922,3100.4,3099.5,0.67019104]
[1720584951316,1.11773922,3100.3,3099.5,3.0]
[1720584951516,1.11773922,3100.4,3099.6,1.12327015]
[1720584951720,2.81444907,3100.4,3099.5,3.0]
[1720584951966,1.11773922,3100.3,3099.5,3.0]
[1720584952132,2.81444907,3100.3,3099.4,5.2786]
[1720584952345,2.81444907,3100.3,3099.2,0.78336414]
[1720584952346,3.53673922,3100.2,3099.2,0.78336414]
[1720584952543,3.53673922,3100.2,3099.2,0.1131731]
[1720584952544,1.69670985,3099.5,3099.2,0.1131731]
[1720584952754,2.81444907,3099.4,3099.2,0.1131731]
[1720584952963,1.11773922,3099.4,3099.2,0.1131731]
[1720584953161,7.46,3100.2,3099.2,0.35235041]
[1720584953453,5.419,3100.8,3099.2,0.1131731]
[1720584953454,0.55,3100.1,3099.2,0.1131731]
[1720584953619,5.419,3100.8,3099.2,0.1131731]
[1720584953620,4.0919,3100.7,3099.2,0.1131731]
[1720584954279,3.266,3100.6,3099.2,0.1131731]
[1720584954460,3.55,3100.5,3099.2,0.1131731]
[1720584954662,0.6816,3100.4,3099.2,0.1131731]
[1720584954985,0.30998181,3100.2,3099.2,0.1131731]
[1720584955264,0.30998181,3100.0,3099.2,0.1131731]
[1720584955449,0.55,3099.9,3099.2,0.1131731]
[1720584955779,3.266,3099.5,3099.2,0.1131731]
[1720584956077,0.55,3099.4,3099.2,0.1131731]
[1720584956395,3.55,3099.4,3099.2,0.1131731]
[1720584956545,0.55,3099.3,3099.2,0.1131731]
[1720584957303,0.33816403,3099.4,3099.2,0.1131731]
[1720584957451,0.38599818,3099.8,3099.2,0.1131731]
[1720584957646,7.46,3100.2,3099.2,0.1131731]
[1720584957845,0.33809699,3099.8,3099.2,0.1131731]
[1720584958184,2.4858,3099.7,3099.2,0.1131731]
[1720584958385,3.266,3099.5,3099.2,0.1131731]
[1720584958996,0.55,3099.4,3099.2,0.1131731]
[1720584959289,0.55,3099.5,3099.2,0.1131731]
[1720584959522,0.55,3099.5,3099.2,0.11215105]
[1720584959842,0.55,3099.7,3099.2,0.11215105]
[1720584960475,0.33809699,3099.8,3099.2,0.11215105]
[1720584962071,0.85998181,3099.7,3099.2,0.11215105]
[1720584962282,3.266,3099.3,3099.2,0.11215105]
[1720584962583,4.6319,3099.3,3099.2,0.11215105]
[1720584962748,6.816,3099.3,3099.2,0.11215105]
[1720584962955,3.55,3099.3,3099.2,0.11215105]
[1720584963163,0.55,3099.3,3099.2,0.11215105]
[1720584963458,3.55,3099.3,3099.2,0.11215105]
[1720584963659,1.23599818,3099.3,3099.2,0.11215105]
[1720584963859,2.2519,3100.1,3099.2,0.11215105]
[1720584964088,0.30998181,3099.7,3099.2,0.11215105]
[1720584964289,3.57598181,3100.2,3099.2,0.11215105]
[1720584964457,0.30998181,3100.0,3099.2,0.11215105]
[1720584965289,6.406,3100.5,3099.2,0.11215105]
[1720584965290,0.30998181,3100.4,3099.2,0.11215105]
[1720584965697,6.0,3100.5,3099.2,0.11215105]
[1720584965999,3.0,3100.4,3099.2,0.11215105]
[1720584966391,1.11829057,3099.7,3099.2,0.11215105]
[1720584966593,6.406,3099.3,3099.2,0.11215105]
[1720584966775,8.49171563,3099.3,3099.2,0.11215105]
[1720584966969,12.35169744,3099.3,3099.2,0.11215105]
[1720584967497,0.30998181,3098.8,3097.4,2.3472]
[1720584967687,1.11851563,3098.7,3097.4,2.3472]
[1720584967984,3.406,3099.1,3097.4,2.3472]
[1720584967985,0.80998181,3098.6,3097.4,2.3472]
[1720584968359,0.55,3098.6,3097.4,2.3472]
[1720584968704,0.55,3098.6,3096.4,3.42916327]
[1720584968705,0.25998181,3098.2,3096.5,2.3472]
[1720584968922,0.55,3098.1,3096.5,2.3472]
[1720584969186,0.55,3098.1,3096.1,2.4111731]
[1720584969187,1.11897034,3098.0,3096.1,2.4111731]
[1720584969355,0.25998181,3097.8,3096.2,0.24111731]
[1720584969549,0.55,3097.7,3096.2,0.24111731]
[1720584969784,0.25998181,3097.6,3096.2,0.24111731]
[1720584970002,0.55,3097.5,3096.2,0.24111731]
[1720584970210,0.55,3097.5,3096.3,0.26522904]
[1720584970411,0.55,3097.5,3096.4,2.4042]
[1720584970859,0.55,3097.5,3096.4,5.4042]
[1720584971053,0.25998181,3098.5,3096.5,3.33057829]
[1720584971257,0.55,3098.4,3096.6,3.0]
[1720584971461,0.87599818,3098.4,3096.6,3.0]
[1720584971688,0.87599818,3098.4,3096.7,0.06457573]
[1720584972084,0.87599818,3098.4,3096.4,2.4042]
[1720584972269,0.87599818,3098.4,3096.5,0.24042]
[1720584972831,0.87599818,3098.4,3096.5,3.24042]
[1720584972972,0.87599818,3098.4,3096.6,2.58347]
[1720584972973,0.32599818,3098.4,3096.6,2.58347]
[1720584973171,0.33822216,3098.3,3096.7,3.0]
[1720584974406,0.33822216,3098.3,3096.5,3.24042]
[1720584974657,0.25998181,3098.2,3096.5,3.24042]
[1720584974940,0.55,3098.1,3096.5,3.0]
[1720584975122,0.55,3098.1,3096.4,2.4042]
[1720584975995,0.25998181,3097.8,3096.4,2.4042]
[1720584976199,0.55,3097.7,3096.4,2.4042]
[1720584976446,0.55,3097.7,3096.5,0.24042]
[1720584977855,0.55,3097.7,3096.1,0.1131731]
[1720584977856,0.25998181,3097.6,3096.1,0.1131731]
[1720584978014,0.55,3097.5,3096.1,0.1131731]
[1720584978413,0.55,3097.5,3096.1,3.3791731]
[1720584979442,2.8258,3097.5,3096.1,0.1131731]
[1720584979643,3.28258,3097.4,3096.1,0.1131731]
[1720584980054,0.55,3097.3,3096.1,0.1131731]
[1720584980255,3.55,3097.3,3096.1,0.1131731]
[1720584980553,3.0,3097.9,3096.2,0.06458482]
[1720584980703,0.55,3097.8,3096.2,3.266]
[1720584981138,0.55,3097.8,3096.3,3.0]
[1720584981709,0.55,3097.8,3096.4,1.12441192]
[1720584981945,0.80998181,3097.8,3096.2,0.66349495]
[1720584982188,1.28593618,3097.8,3096.3,2.81103575]
[1720584982388,4.28593618,3097.8,3096.1,3.77666805]
[1720584982537,4.28593618,3097.8,3096.2,3.47452582]
[1720584982538,4.54591799,3097.8,3096.2,3.47452582]
[1720584982739,0.85595162,3097.7,3096.3,5.81103087]
[1720584983002,0.55,3097.6,3096.4,1.12441235]
[1720584983158,0.55,3097.6,3096.1,3.77666805]
[1720584983340,0.55,3097.6,3096.2,2.81101997]
[1720584983542,0.55,3097.7,3096.3,4.12440799]
[1720584983758,2.4274,3098.5,3096.4,2.4345]
[1720584983937,2.4274,3098.5,3096.6,3.266]
[1720584984390,2.4274,3098.5,3096.7,0.06457073]
[1720584984569,2.4274,3098.5,3096.6,3.266]
[1720584984776,2.4274,3098.5,3096.7,0.06456655]
[1720584984948,2.4274,3098.5,3096.8,0.39761857]
[1720584985164,2.4274,3098.5,3096.8,0.33305665]
[1720584986085,3.0,3098.4,3096.8,0.33305665]
[1720584986283,0.55,3098.2,3096.8,0.33305665]
[1720584987201,7.46,3098.7,3096.9,2.2822]
[1720584987406,7.46,3098.7,3097.4,3.266]
[1720584987973,7.46,3098.7,3097.5,2.2822]
[1720584987974,0.33762071,3098.7,3097.5,2.2822]
[1720584988178,7.71998181,3099.4,3097.8,3.266]
[1720584988490,2.2635,3099.8,3098.0,2.2822]
[1720584988705,0.33756143,3099.4,3098.6,3.266]
[1720584988859,7.46,3100.4,3099.0,3.266]
[1720584989064,0.25998181,3100.6,3099.1,0.06452397]
[1720584989259,0.33751999,3100.3,3099.0,0.06452186]
[1720584989613,0.33751999,3100.3,3098.8,2.2822]
[1720584989760,0.33751999,3100.3,3098.8,2.51042]
[1720584990263,0.25998181,3100.2,3098.9,3.0]
[1720584990458,0.25998181,3100.2,3098.8,2.2822]
[1720584990679,0.33751999,3100.3,3098.5,3.0]
[1720584990680,0.25998181,3100.0,3098.5,3.0]
[1720584991017,0.25998181,3099.6,3098.3,2.4466]
[1720584991375,0.25998181,3100.0,3098.3,2.51114118]
[1720584991564,0.55,3099.9,3098.4,0.24466]
[1720584991761,1.27268,3100.0,3098.5,0.06453109]